bitfinex-derivatives/quotes_BTCF0:USTF0_20250416
["timestamp","ask_amount","ask_price","bid_price","bid_amount"]
[1744821341910,0.19254301,84954.0,84953.0,0.00606159]
[1744821343210,0.19254301,84954.0,84953.0,0.12378309]
[1744821343721,0.19262301,84954.0,84953.0,0.12378309]
[1744821344315,0.19262301,84954.0,84953.0,0.00606159]
[1744821347724,0.19262301,84954.0,84953.0,0.12378309]
[1744821348523,0.19262301,84954.0,84953.0,0.00606159]
[1744821349922,0.1177326,84945.0,84944.0,0.07820533]
[1744821350128,0.117752,84932.0,84931.0,0.0301]
[1744821350428,0.1177562,84928.0,84927.0,0.00506314]
[1744821350614,0.1177562,84928.0,84927.0,0.03506314]
[1744821350813,0.5427562,84928.0,84927.0,0.03506314]
[1744821351334,0.1177673,84920.0,84919.0,0.00017654]
[1744821351531,0.1177825,84909.0,84908.0,0.0603]
[1744821351713,0.1177825,84909.0,84908.0,0.1303]
[1744821351914,0.1177825,84909.0,84908.0,0.2480839]
[1744821352525,0.1837825,84909.0,84908.0,0.2480839]
[1744821352821,0.5445825,84909.0,84908.0,0.2530839]
[1744821353022,0.5445825,84909.0,84908.0,0.075]
[1744821353221,0.5445825,84909.0,84908.0,0.1927839]
[1744821353617,0.5445825,84909.0,84908.0,0.2017839]
[1744821354214,0.5445825,84909.0,84908.0,0.084]
[1744821354629,0.5445825,84909.0,84896.0,0.0306]
[1744821354630,0.1177922,84902.0,84896.0,0.0306]
[1744821354928,0.4785922,84902.0,84896.0,0.0306]
[1744821355220,0.4785922,84902.0,84895.0,0.1178015]
[1744821355424,0.4785922,84902.0,84894.0,0.1178032]
[1744821355627,0.5412922,84902.0,84895.0,0.1178018]
[1744821355823,0.5412922,84902.0,84895.0,0.1178008]
[1744821356012,0.5412922,84902.0,84894.0,0.0589016]
[1744821356213,0.5412922,84902.0,84893.0,0.0331]
[1744821356721,0.1178214,84881.0,84880.0,0.0304]
[1744821356924,0.1178214,84881.0,84880.0,0.16]
[1744821357113,0.1178283,84876.0,84875.0,0.12289534]
[1744821357312,0.4786283,84876.0,84875.0,0.14289534]
[1744821358315,0.4796283,84876.0,84875.0,0.15089534]
[1744821358517,0.4796283,84876.0,84875.0,0.21379534]
[1744821358821,0.01763557,84876.0,84875.0,0.21379534]
[1744821359021,0.00208,84876.0,84875.0,0.21979534]
[1744821359428,0.002,84876.0,84875.0,0.21979534]
[1744821359623,0.00208,84876.0,84875.0,0.21979534]
[1744821360324,0.00017665,84884.0,84883.0,0.1178186]
[1744821360629,0.00025665,84884.0,84883.0,0.1478186]
[1744821360927,0.4786025,84895.0,84883.0,0.1349]
[1744821360928,0.01688548,84895.0,84883.0,0.1349]
[1744821361227,0.1178035,84895.0,84894.0,0.1178033]
[1744821361419,0.1178035,84895.0,84894.0,0.1478033]
[1744821361622,0.1511835,84895.0,84894.0,0.1478033]
[1744821361814,0.1178033,84894.0,84893.0,0.0323]
[1744821362020,0.1490033,84894.0,84893.0,0.0323]
[1744821362229,0.1823033,84894.0,84893.0,0.1501047]
[1744821362614,0.1178117,84888.0,84887.0,0.1767177]
[1744821362819,0.1178117,84888.0,84887.0,0.2390177]
[1744821363226,0.1178117,84888.0,84887.0,0.2705177]
[1744821363425,0.1511117,84888.0,84887.0,0.2705177]
[1744821364429,0.1178117,84888.0,84887.0,0.1297056]
[1744821364631,0.1497117,84888.0,84887.0,0.0848]
[1744821365130,0.1828117,84888.0,84887.0,0.0748]
[1744821365326,0.065,84888.0,84886.0,0.00017665]
[1744821365625,0.1178283,84876.0,84866.0,0.0966]
[1744821365820,0.4786283,84876.0,84866.0,0.0966]
[1744821366422,0.1178408,84867.0,84866.0,0.0966]
[1744821366721,0.1178408,84867.0,84866.0,0.2744422]
[1744821367123,0.1178408,84867.0,84866.0,0.1566]
[1744821367432,0.4786408,84867.0,84866.0,0.1566]
[1744821368033,0.4786408,84867.0,84866.0,0.2744422]
[1744821368325,0.3608,84876.0,84868.0,0.0589197]
[1744821368516,0.1767547,84872.0,84871.0,0.1178326]
[1744821368722,0.1178408,84867.0,84866.0,0.1006]
[1744821368923,0.1178408,84867.0,84866.0,0.1106]
[1744821371226,0.00010801,84877.0,84868.0,0.1178392]
[1744821371533,0.117838,84869.0,84868.0,0.03]
[1744821372232,0.1178408,84867.0,84866.0,0.0686]
[1744821372529,0.1178408,84867.0,84866.0,0.004]
[1744821372918,0.1178519,84859.0,84858.0,0.00017665]
[1744821373120,0.1178714,84845.0,84844.0,0.0323]
[1744821373320,0.1178714,84845.0,84844.0,0.01]
[1744821373522,0.1178728,84844.0,84843.0,0.17961653]
[1744821373731,0.1503728,84844.0,84843.0,0.17961653]
[1744821374031,0.1503728,84844.0,84843.0,0.10531133]
[1744821374326,0.1178811,84838.0,84837.0,0.23840818]
[1744821374527,0.5622811,84838.0,84837.0,0.23840818]
[1744821374924,0.1178908,84831.0,84830.0,0.29789445]
[1744821375127,0.4786908,84831.0,84830.0,0.29789445]
[1744821375731,0.5413908,84831.0,84830.0,0.29789445]
[1744821376425,0.5414708,84831.0,84830.0,0.29789445]
[1744821377133,0.55802776,84831.0,84830.0,0.002]
[1744821378135,0.55802776,84831.0,84830.0,0.1198922]
[1744821378532,0.55802776,84831.0,84830.0,0.002]
[1744821379119,0.55802776,84831.0,84830.0,0.1198922]
[1744821379327,0.55802776,84831.0,84830.0,0.1503922]
[1744821379634,0.55802776,84831.0,84830.0,0.0325]
[1744821379829,0.55802776,84831.0,84830.0,0.1503922]
[1744821380636,0.55802776,84831.0,84830.0,0.0325]
[1744821381321,0.55802776,84831.0,84830.0,0.002]
[1744821383438,0.56496129,84831.0,84830.0,0.002]
[1744821384736,0.1179089,84818.0,84817.0,0.0321]
[1744821384929,0.1179089,84818.0,84817.0,0.1121]
[1744821385135,0.1179089,84818.0,84817.0,0.08]
[1744821385338,0.12484243,84818.0,84817.0,0.08]
[1744821385634,0.18974243,84818.0,84817.0,0.08]
[1744821386334,0.18974243,84818.0,84817.0,0.084]
[1744821386534,0.18974243,84818.0,84817.0,0.089]
[1744821387333,0.18974243,84818.0,84817.0,0.009]
[1744821388129,0.18974243,84818.0,84800.0,0.1]
[1744821388130,0.0589589,84812.0,84800.0,0.1]
[1744821388333,0.0589665,84801.0,84800.0,0.09]
[1744821388628,0.1179367,84798.0,84793.0,0.0324]
[1744821388843,0.0589676,84800.0,84786.0,0.0317]
[1744821388844,0.08789371,84800.0,84797.0,0.0250709]
[1744821389134,0.1179367,84798.0,84797.0,0.0250709]
[1744821389533,0.12487023,84798.0,84797.0,0.0250709]
[1744821390239,0.1179548,84785.0,84780.0,0.03]
[1744821390539,0.48568833,84785.0,84784.0,0.46789445]
[1744821390728,0.48568833,84785.0,84784.0,0.29789445]
[1744821391038,0.48568833,84785.0,84784.0,0.30789445]
[1744821391234,0.56439925,84785.0,84784.0,0.30789445]
[1744821391736,0.56439925,84785.0,84784.0,0.29989445]
[1744821392142,0.56539925,84785.0,84784.0,0.30889445]
[1744821392340,0.20459925,84785.0,84784.0,0.30889445]
[1744821392642,0.20367925,84785.0,84784.0,0.002]
[1744821392832,0.20367925,84785.0,84784.0,0.014]
[1744821393033,0.08572445,84785.0,84784.0,0.1299562]
[1744821393235,0.08572445,84785.0,84784.0,0.1329562]
[1744821393433,0.20359925,84785.0,84784.0,0.1329562]
[1744821393628,0.56447925,84785.0,84784.0,0.1329562]
[1744821393833,0.56447925,84785.0,84784.0,0.015]
[1744821394029,0.05572445,84785.0,84784.0,0.1329562]
[1744821394241,0.00010801,84791.0,84790.0,0.1179478]
[1744821394541,0.3608,84804.0,84795.0,0.0589698]
[1744821394542,0.0589699,84796.0,84795.0,0.0589698]
[1744821394741,0.4197699,84796.0,84795.0,0.1512698]
[1744821394942,0.0589699,84796.0,84795.0,0.1512698]
[1744821395243,0.0590499,84796.0,84795.0,0.1512698]
[1744821395435,0.0590499,84796.0,84795.0,0.0923]
[1744821395640,0.0590499,84796.0,84795.0,0.2102409]
[1744821395941,0.0590499,84796.0,84795.0,0.03]
[1744821396129,0.46718435,84796.0,84795.0,0.03]
[1744821396328,0.1179464,84791.0,84790.0,0.002]
[1744821396539,0.1179464,84791.0,84790.0,0.022]
[1744821396835,0.1179464,84791.0,84790.0,0.02]
[1744821397743,0.1179464,84791.0,84790.0,0.022]
[1744821398446,0.1179464,84791.0,84790.0,0.023]
[1744821398634,0.1179464,84791.0,84790.0,0.003]
[1744821398834,0.1179464,84791.0,84790.0,0.00029972]
[1744821399030,0.1179464,84791.0,84790.0,0.11824752]
[1744821399230,0.1179464,84791.0,84790.0,0.01029972]
[1744821399739,0.0891711,84795.0,84790.0,0.01029972]
[1744821399941,0.2071147,84795.0,84794.0,0.1179423]
[1744821400244,0.2376947,84795.0,84794.0,0.02]
[1744821400646,0.2376147,84795.0,84794.0,0.02]
[1744821400841,0.2376947,84795.0,84794.0,0.02]
[1744821401832,0.2386947,84795.0,84794.0,0.02]
[1744821402343,0.1180209,84795.0,84794.0,0.1379423]
[1744821402541,0.1190209,84795.0,84794.0,0.1379423]
[1744821402938,0.1493209,84795.0,84794.0,0.1379423]
[1744821403133,0.00108,84795.0,84794.0,0.1389423]
[1744821403540,0.1189409,84795.0,84794.0,0.1389423]
[1744821403738,0.1190209,84795.0,84794.0,0.1389423]
[1744821404338,0.1190209,84795.0,84794.0,0.021]
[1744821404539,0.1522209,84795.0,84794.0,0.021]
[1744821404843,0.1842209,84795.0,84794.0,0.021]
[1744821405437,0.1841409,84795.0,84794.0,0.1389423]
[1744821405637,0.1842209,84795.0,84794.0,0.1389423]
[1744821406050,0.1842209,84795.0,84794.0,0.021]
[1744821406837,0.5450209,84795.0,84794.0,0.021]
[1744821407041,0.5450209,84795.0,84794.0,0.00993737]
[1744821407543,0.5450209,84795.0,84794.0,0.001]
[1744821407938,0.5755209,84795.0,84794.0,0.001]
[1744821408140,0.1842209,84795.0,84794.0,0.001]
[1744821408346,0.06628,84795.0,84794.0,0.1289423]
[1744821408646,0.00108,84795.0,84794.0,0.1289423]
[1744821409337,0.00108,84795.0,84794.0,0.1918423]
[1744821409535,0.00010801,84804.0,84803.0,0.1179297]
[1744821409747,0.00010801,84804.0,84803.0,0.2179297]
[1744821409949,0.00017686,84809.0,84805.0,0.0589631]
[1744821410152,0.00017686,84809.0,84808.0,0.1179228]
[1744821410340,0.00017686,84809.0,84808.0,0.1579228]
[1744821410847,0.00025686,84809.0,84808.0,0.1579228]
[1744821412245,0.00025686,84809.0,84808.0,0.1589228]
[1744821412450,0.00225686,84809.0,84808.0,0.1589228]
[1744821412748,0.03525686,84809.0,84808.0,0.1589228]
[1744821413248,0.03325686,84809.0,84808.0,0.1609228]
[1744821413652,0.15117826,84809.0,84808.0,0.1609228]
[1744821414043,0.15117826,84809.0,84808.0,0.1589228]
[1744821414244,0.15117826,84809.0,84808.0,0.1599228]
[1744821414545,0.15117826,84809.0,84808.0,0.14886332]
[1744821414745,0.15117826,84809.0,84808.0,0.1390156]
[1744821415354,0.15317826,84809.0,84808.0,0.1390156]
[1744821415742,0.15117826,84809.0,84808.0,0.1390156]
[1744821416053,0.15417826,84809.0,84808.0,0.1390156]
[1744821416248,0.15417826,84809.0,84808.0,0.1380156]
[1744821416456,0.15417826,84809.0,84808.0,0.1390156]
[1744821417456,0.15517826,84809.0,84808.0,0.1380156]
[1744821418453,0.0589638,84805.0,84796.0,0.0589696]
[1744821418652,0.1179506,84788.0,84787.0,0.235897]
[1744821418850,0.1179506,84788.0,84787.0,0.355897]
[1744821419455,0.1179506,84788.0,84787.0,0.12]
[1744821420456,0.1179506,84788.0,84787.0,0.237952]
[1744821420650,0.17955,84790.0,84789.0,0.1179492]
[1744821420960,0.3608,84797.0,84789.0,0.1179492]
[1744821420961,0.00017686,84809.0,84801.0,0.0589656]
[1744821421160,0.2032868,84806.0,84805.0,0.117927]
[1744821421456,0.1179297,84804.0,84803.0,0.1179293]
[1744821421765,8e-05,84806.0,84805.0,0.117927]
[1744821422057,0.00017686,84809.0,84808.0,0.1179228]
[1744821422261,0.00017686,84809.0,84808.0,0.1279228]
[1744821422451,0.11809826,84809.0,84808.0,0.1279228]
[1744821422764,0.18129826,84809.0,84808.0,0.1279228]
[1744821422958,0.03137686,84809.0,84808.0,0.1279228]
[1744821423647,0.03145686,84809.0,84808.0,0.1279228]
[1744821423845,0.03245686,84809.0,84808.0,0.1279228]
[1744821424062,0.15037826,84809.0,84808.0,0.1279228]
[1744821424251,0.15437826,84809.0,84808.0,0.1279228]
[1744821424454,0.15337826,84809.0,84808.0,1.6279228]
[1744821424654,0.14937826,84809.0,84808.0,1.6279228]
[1744821424853,0.15137826,84809.0,84808.0,1.6279228]
[1744821425050,0.15137826,84809.0,84808.0,1.51]
[1744821425355,0.15137826,84809.0,84808.0,1.6279228]
[1744821425860,0.15137826,84809.0,84808.0,0.1279228]
[1744821426262,0.03345686,84809.0,84808.0,0.1279228]
[1744821426458,0.03337686,84809.0,84808.0,0.1279228]
[1744821426654,0.03345686,84809.0,84808.0,0.1279228]
[1744821426853,0.15137826,84809.0,84808.0,0.1279228]
[1744821427561,0.15137826,84809.0,84808.0,0.1910228]
[1744821428155,0.03345686,84809.0,84808.0,0.1910228]
[1744821428357,0.15037826,84809.0,84808.0,0.1910228]
[1744821430266,0.15037826,84809.0,84808.0,0.1920228]
[1744821430666,0.03245686,84809.0,84808.0,0.1920228]
[1744821430860,0.03145686,84809.0,84808.0,0.5528228]
[1744821431059,0.03237686,84809.0,84808.0,0.5528228]
[1744821431263,0.03245686,84809.0,84808.0,0.5528228]
[1744821432870,0.1179103,84818.0,84817.0,0.1179103]
[1744821433062,0.1179103,84818.0,84817.0,0.1379103]
[1744821433764,0.00010801,84819.0,84818.0,0.1179089]
[1744821433964,0.1179068,84820.0,84819.0,0.1768598]
[1744821434164,0.1484068,84820.0,84819.0,0.2480598]
[1744821434366,0.1817068,84820.0,84819.0,0.2485598]
[1744821434763,0.19744181,84820.0,84819.0,0.2485598]
[1744821434962,0.07953501,84820.0,84819.0,0.2485598]
[1744821435163,0.00517686,84826.0,84825.0,0.1178992]
[1744821435362,0.00517686,84826.0,84825.0,0.1678992]
[1744821435572,0.56832447,84848.0,84829.0,0.0589462]
[1744821435767,0.11799441,84835.0,84834.0,0.1178866]
[1744821436063,0.1512664,84835.0,84834.0,0.1378866]
[1744821436769,0.16681091,84835.0,84834.0,0.1378866]
[1744821436957,0.16681091,84835.0,84834.0,0.02]
[1744821437157,0.1178964,84827.0,84826.0,0.00017686]
[1744821437366,0.1178964,84827.0,84826.0,0.11807466]
[1744821437960,0.1178964,84827.0,84826.0,0.00017686]
[1744821438260,0.1178964,84827.0,84826.0,0.02017686]
[1744821438459,0.1198964,84827.0,84826.0,0.00017686]
[1744821438864,0.1519964,84827.0,84826.0,0.00017686]
[1744821439068,0.1529964,84827.0,84826.0,0.00017686]
[1744821439262,0.1179033,84822.0,84821.0,0.10702245]
[1744821439466,0.1179033,84822.0,84821.0,0.11702245]
[1744821440162,0.1803033,84822.0,84821.0,0.11702245]
[1744821440363,0.1803033,84822.0,84821.0,0.01]
[1744821440665,0.0634,84822.0,84819.0,0.0589535]
[1744821440967,0.1179061,84820.0,84819.0,0.0589535]
[1744821441266,0.1179089,84818.0,84817.0,0.4197549]
[1744821441466,0.1179089,84818.0,84817.0,0.4297549]
[1744821441666,0.1786089,84818.0,84817.0,0.4297549]
[1744821441869,0.1786089,84818.0,84817.0,0.3708]
[1744821442163,0.1786089,84818.0,84817.0,0.4887103]
[1744821442564,0.1786089,84818.0,84817.0,0.01]
[1744821442772,0.1786089,84818.0,84817.0,0.011]
[1744821443570,0.1179144,84814.0,84813.0,0.00017686]
[1744821443960,0.1818144,84814.0,84813.0,0.00017686]
[1744821444973,0.1179367,84798.0,84797.0,0.36569404]
[1744821445275,0.117959,84782.0,84781.0,0.0332]
[1744821445466,0.117959,84782.0,84781.0,0.2432603]
[1744821445663,0.0327,84783.0,84782.0,0.0589795]
[1744821445865,0.058974,84791.0,84790.0,0.0589733]
[1744821446171,0.0635,84792.0,84791.0,0.1179464]
[1744821446373,0.19008039,84792.0,84791.0,0.1600464]
[1744821446767,0.07213539,84792.0,84791.0,0.1600464]
[1744821446968,0.07221539,84792.0,84791.0,0.1930464]
[1744821448172,8e-05,84792.0,84791.0,0.1930464]
[1744821448365,8e-05,84792.0,84791.0,0.1940464]
[1744821448564,0.00017686,84799.0,84798.0,0.1179367]
[1744821448770,0.00017686,84799.0,84798.0,0.5787367]
[1744821449275,0.00017686,84799.0,84798.0,0.6435367]
[1744821449977,0.00017686,84799.0,84798.0,0.6335367]
[1744821450173,0.00117686,84799.0,84798.0,0.6335367]
[1744821450670,0.06557686,84799.0,84798.0,0.6335367]
[1744821450871,0.06857686,84799.0,84798.0,0.6335367]
[1744821451776,0.00417686,84799.0,84798.0,0.6335367]
[1744821452880,0.0895544,84819.0,84816.0,0.1179117]
[1744821453179,0.1485075,84819.0,84818.0,0.1179089]
[1744821453376,0.1485075,84819.0,84818.0,0.1279089]
[1744821453579,0.03959073,84819.0,84818.0,0.1279089]
[1744821454073,0.00899073,84819.0,84818.0,0.4887089]
[1744821454265,0.15729823,84819.0,84818.0,0.4887089]
[1744821454469,0.18303699,84819.0,84818.0,0.4897089]
[1744821454670,0.18311699,84819.0,84818.0,0.4897089]
[1744821454973,0.18311699,84819.0,84818.0,0.1289089]
[1744821456580,0.17311699,84819.0,84818.0,0.1279089]
[1744821458084,0.17311699,84819.0,84818.0,0.01]
[1744821458578,0.1179186,84811.0,84810.0,0.00017686]
[1744821458974,0.4787186,84811.0,84810.0,0.00017686]
[1744821459481,0.5406186,84811.0,84810.0,0.00017686]
[1744821459877,0.5416186,84811.0,84810.0,0.00017686]
[1744821460184,0.5436186,84811.0,84810.0,0.00017686]
[1744821461077,0.5436186,84811.0,84810.0,0.11809686]
[1744821461273,0.1828186,84811.0,84810.0,0.11809686]
[1744821461878,0.0649,84811.0,84810.0,0.49889686]
[1744821462079,0.06498,84811.0,84810.0,0.56459686]
[1744821462481,0.1828186,84811.0,84810.0,0.56459686]
[1744821462678,0.1828986,84811.0,84810.0,0.49889686]
[1744821463079,0.06498,84811.0,84810.0,0.49889686]
[1744821463282,0.06498,84811.0,84810.0,0.53199686]
[1744821463689,0.1828986,84811.0,84810.0,0.53199686]
[1744821463902,0.1828186,84811.0,84810.0,0.53199686]
[1744821464079,0.0649,84811.0,84810.0,0.53199686]
[1744821464389,0.1512186,84811.0,84810.0,0.53299686]
[1744821464781,0.1492986,84811.0,84810.0,0.53299686]
[1744821464982,0.1512986,84811.0,84810.0,0.53299686]
[1744821465284,0.1512986,84811.0,84810.0,0.49889686]
[1744821466485,0.1492986,84811.0,84810.0,0.49889686]
[1744821466693,0.1502986,84811.0,84810.0,0.49889686]
[1744821467783,0.1502986,84811.0,84810.0,0.52919686]
[1744821469390,0.1805986,84811.0,84810.0,0.52919686]
[1744821472282,0.00108,84811.0,84810.0,0.58919686]
[1744821472586,0.08788,84837.0,84825.0,0.1178992]
[1744821472783,0.00019684,84829.0,84825.0,0.5486992]
[1744821472989,0.01491431,84829.0,84825.0,0.6454992]
[1744821473389,0.01491431,84829.0,84825.0,0.6554992]
[1744821473687,0.00808,84826.0,84825.0,0.6554992]
[1744821473994,0.01008,84826.0,84825.0,0.6454992]
[1744821474379,0.00708,84826.0,84825.0,0.6454992]
[1744821474584,0.00808,84826.0,84825.0,0.6454992]
[1744821475082,0.04028,84826.0,84825.0,0.6454992]
[1744821475287,0.00808,84826.0,84825.0,0.6454992]
[1744821475486,0.4114,84862.0,84825.0,0.9276]
[1744821475687,0.0314,84843.0,84842.0,0.1178755]
[1744821475887,0.1492741,84843.0,84842.0,0.1478755]
[1744821476086,0.04037946,84843.0,84842.0,0.1478755]
[1744821476294,0.0551528,84843.0,84842.0,0.1478755]
[1744821476494,0.0550728,84843.0,84842.0,0.1478755]
[1744821476696,0.0551528,84843.0,84842.0,0.1478755]
[1744821476894,0.0631528,84843.0,84842.0,0.1488755]
[1744821477390,0.1810269,84843.0,84842.0,0.1488755]
[1744821477591,0.01208,84843.0,84842.0,0.1488755]
[1744821477791,0.00010801,84847.0,84846.0,0.11787]
[1744821478087,0.00017686,84851.0,84850.0,0.1178644]
[1744821478290,0.00017686,84851.0,84850.0,0.2733644]
[1744821478898,0.11803986,84851.0,84850.0,0.2406644]
[1744821479095,0.18413986,84851.0,84850.0,0.2406644]
[1744821479393,0.06627686,84851.0,84850.0,0.2406644]
[1744821479895,0.07027686,84851.0,84850.0,0.2406644]
[1744821480284,0.03717686,84851.0,84850.0,0.2406644]
[1744821480489,0.00417686,84851.0,84850.0,0.2730644]
[1744821480691,0.01514052,84868.0,84860.0,0.1178505]
[1744821480891,0.0589238,84863.0,84860.0,0.03]
[1744821481081,0.1178447,84865.0,84864.0,0.1178436]
[1744821481287,0.1178447,84865.0,84864.0,0.1378436]
[1744821481491,0.1497447,84865.0,84864.0,0.1378436]
[1744821481689,0.1497447,84865.0,84864.0,0.02]
[1744821482084,0.1497447,84865.0,84864.0,0.137845]
[1744821482691,0.1497447,84865.0,84864.0,0.02]
[1744821482992,0.1547447,84865.0,84864.0,0.02]
[1744821483797,0.1587447,84865.0,84864.0,0.02]
[1744821484094,0.1587447,84865.0,84864.0,0.00894746]
[1744821484894,0.1768125,84844.0,84843.0,0.1178735]
[1744821485096,0.1768125,84844.0,84843.0,0.1478735]
[1744821485998,0.1768125,84844.0,84843.0,0.03]
[1744821486291,0.1493705,84846.0,84845.0,0.1178714]
[1744821486499,0.1178705,84846.0,84845.0,0.1778714]
[1744821486694,0.033,84849.0,84848.0,0.1178672]
[1744821487001,0.11803835,84852.0,84851.0,0.117863]
[1744821487194,0.00017675,84852.0,84851.0,0.147863]
[1744821487594,0.00017675,84852.0,84851.0,0.508663]
[1744821487793,0.00017675,84852.0,84851.0,0.541263]
[1744821488203,0.19216425,84868.0,84867.0,0.1178408]
[1744821488694,0.19216425,84868.0,84867.0,0.1790408]
[1744821488897,0.19216425,84868.0,84867.0,0.1490408]
[1744821489199,0.117845,84864.0,84863.0,0.0589231]
[1744821489399,0.117845,84864.0,84863.0,0.0689231]
[1744821489703,0.149545,84864.0,84863.0,0.0689231]
[1744821489891,0.149625,84864.0,84863.0,0.0689231]
[1744821490605,0.154625,84864.0,84863.0,0.0689231]
[1744821490898,0.158625,84864.0,84863.0,0.1015231]
[1744821492395,0.158625,84864.0,84863.0,0.0426]
[1744821493197,0.519425,84864.0,84863.0,0.01]
[1744821493699,0.551725,84864.0,84863.0,0.01]
[1744821493910,0.1178505,84860.0,84859.0,0.00017675]
[1744821494106,0.1178505,84860.0,84859.0,0.01017675]
[1744821494404,0.1794505,84860.0,84859.0,0.01017675]
[1744821495209,0.1824505,84860.0,84859.0,0.01017675]
[1744821495803,0.1864505,84860.0,84859.0,0.00017675]
[1744821500310,0.0589287,84855.0,84848.0,0.1178668]
[1744821500500,0.0315,84854.0,84849.0,0.031]
[1744821500699,0.1178644,84850.0,84849.0,0.101]
[1744821501806,0.1188644,84850.0,84849.0,0.101]
[1744821502406,0.1198644,84850.0,84849.0,0.101]
[1744821503408,0.1198644,84850.0,84849.0,0.07]
[1744821504800,0.1198644,84850.0,84849.0,0.1878658]
[1744821505002,0.1198644,84850.0,84849.0,0.07]
[1744821505709,0.1198644,84850.0,84849.0,0.1011]
[1744821507915,0.1837644,84850.0,84849.0,0.07]
[1744821508414,0.2154644,84850.0,84849.0,0.07]
[1744821509212,0.1178755,84842.0,84841.0,0.00017675]
[1744821509413,0.1178755,84842.0,84841.0,0.01017675]
[1744821509809,0.1790755,84842.0,84841.0,0.01017675]
[1744821510411,0.1790755,84842.0,84841.0,0.01117675]
[1744821511312,0.1790755,84842.0,84841.0,0.01317675]
[1744821513111,0.1178936,84829.0,84828.0,0.0326]
[1744821513305,0.1178936,84829.0,84828.0,0.0626]
[1744821513512,0.1178936,84829.0,84828.0,0.03]
[1744821514216,0.1179172,84812.0,84811.0,0.17909145]
[1744821514408,0.1179172,84812.0,84811.0,0.22909145]
[1744821515021,0.032,84813.0,84811.0,0.22909145]
[1744821515319,0.12674625,84816.0,84815.0,0.1179131]
[1744821515518,0.00883445,84816.0,84815.0,0.1279131]
[1744821515716,0.00017686,84820.0,84819.0,0.1179075]
[1744821515915,0.1502889,84833.0,84832.0,0.1178894]
[1744821516117,0.1502889,84833.0,84832.0,0.1278894]
[1744821516616,0.1503689,84833.0,84832.0,0.1278894]
[1744821517322,0.16569717,84833.0,84832.0,0.1278894]
[1744821517522,0.13329717,84833.0,84832.0,0.1278894]
[1744821517712,0.13329627,84833.0,84832.0,0.1288894]
[1744821518324,0.14222713,84833.0,84832.0,0.1619894]
[1744821518527,0.14214713,84833.0,84832.0,0.0441]
[1744821518721,0.14222713,84833.0,84832.0,0.1609894]
[1744821519025,0.14222713,84833.0,84832.0,0.1629894]
[1744821519216,0.17532713,84833.0,84832.0,0.1629894]
[1744821519525,0.17532713,84833.0,84832.0,0.012]
[1744821520122,0.20722713,84833.0,84832.0,0.012]
[1744821521124,0.20722713,84833.0,84832.0,0.1298894]
[1744821521324,0.35939425,84850.0,84849.0,0.83656536]
[1744821521526,0.6163044,84850.0,84849.0,0.82550839]
[1744821521727,0.8663044,84850.0,84849.0,0.82550839]
[1744821522227,0.87511055,84850.0,84849.0,0.82550839]
[1744821523329,0.87811055,84850.0,84849.0,0.82550839]
[1744821523727,0.88211055,84850.0,84849.0,0.82550839]
[1744821524331,0.63211055,84850.0,84849.0,0.82550839]
[1744821524834,0.54507055,84850.0,84849.0,0.94337419]
[1744821525129,0.13367055,84850.0,84849.0,0.94337419]
[1744821525630,0.13367055,84850.0,84849.0,1.00747419]
[1744821525827,0.13375055,84850.0,84849.0,1.00747419]
[1744821526034,0.13367055,84850.0,84849.0,0.88960839]
[1744821526217,0.13375055,84850.0,84849.0,1.00747419]
[1744821527125,0.12975055,84850.0,84849.0,0.88960839]
[1744821527326,0.12775055,84850.0,84849.0,0.85700839]
[1744821527632,0.12875055,84850.0,84849.0,0.81528542]
[1744821528231,0.19285055,84850.0,84849.0,0.81528542]
[1744821528429,0.19277055,84850.0,84849.0,0.81528542]
[1744821528622,0.19285055,84850.0,84849.0,0.81528542]
[1744821528816,0.19285055,84850.0,84849.0,0.80422911]
[1744821529023,0.19185055,84850.0,84849.0,0.80422911]
[1744821529225,0.19285055,84850.0,84849.0,0.80422911]
[1744821529432,0.19285055,84850.0,84849.0,0.79538398]
[1744821529830,0.19185055,84850.0,84849.0,0.79538398]
[1744821530029,0.19285055,84850.0,84849.0,0.79538398]
[1744821530231,0.19285055,84850.0,84849.0,0.52960497]
[1744821530430,0.19185055,84850.0,84849.0,0.46282827]
[1744821530624,0.19285055,84850.0,84849.0,0.37446767]
[1744821531525,0.19285055,84850.0,84849.0,0.34839767]
[1744821532426,0.55365055,84850.0,84849.0,0.34839767]
[1744821532731,0.55365055,84850.0,84849.0,0.34337866]
[1744821533733,0.62914388,84850.0,84849.0,0.34337866]
[1744821534826,0.1178741,84843.0,84842.0,0.0316]
[1744821535026,0.1178936,84829.0,84828.0,0.5376399]
[1744821535232,0.1178936,84829.0,84828.0,0.6180399]
[1744821535628,0.1178936,84829.0,84828.0,0.5001472]
[1744821536028,0.1178936,84829.0,84828.0,0.4412]
[1744821536228,0.1817936,84829.0,84828.0,0.559095]
[1744821536429,0.1817936,84829.0,84828.0,0.3912]
[1744821536738,0.1817936,84829.0,84828.0,0.529095]
[1744821536928,0.1817936,84829.0,84828.0,0.501695]
[1744821537435,0.1817936,84829.0,84828.0,0.3838]
[1744821537732,0.1817936,84829.0,84828.0,0.3888]
[1744821538330,0.1817936,84829.0,84828.0,0.025]
[1744821538721,0.2136936,84829.0,84828.0,0.005]
[1744821538921,0.3007736,84829.0,84828.0,0.005]
[1744821539131,0.117895,84828.0,84827.0,0.031]
[1744821540133,0.1179033,84822.0,84821.0,0.0318]
[1744821540321,0.1179033,84822.0,84816.0,0.4197557]
[1744821540322,0.1179047,84821.0,84817.0,0.0319]
[1744821540527,0.5096047,84821.0,84820.0,0.04017686]
[1744821540830,0.5096047,84821.0,84820.0,0.02911732]
[1744821541227,0.5096047,84821.0,84817.0,0.0319]
[1744821541228,0.1179089,84818.0,84817.0,0.0319]
[1744821541737,0.1179089,84818.0,84817.0,0.02305231]
[1744821541925,0.1179131,84815.0,84814.0,0.0318]
[1744821542126,0.1179131,84815.0,84814.0,0.0418]
[1744821542730,0.13674955,84815.0,84814.0,0.0418]
[1744821542936,0.19954955,84815.0,84814.0,0.0418]
[1744821544641,0.13674955,84815.0,84814.0,0.1597144]
[1744821544836,0.13674955,84815.0,84814.0,0.1607144]
[1744821545231,0.13674955,84815.0,84814.0,0.0748]
[1744821545429,0.01883645,84815.0,84814.0,0.1927144]
[1744821545635,0.0589506,84824.0,84822.0,0.1179019]
[1744821545838,0.1179131,84817.0,84816.0,0.1179061]
[1744821546139,0.13714906,84817.0,84816.0,0.02]
[1744821547032,0.13714906,84817.0,84816.0,0.1379117]
[1744821547033,0.19854906,84817.0,84816.0,0.1379117]
[1744821548140,0.19854906,84817.0,84816.0,0.02]
[1744821548738,0.1179367,84798.0,84796.0,0.3608]
[1744821548929,0.1179367,84798.0,84797.0,0.0750709]